lending/lending_fUSD_20240401
["ID","MTS","AMOUNT","RATE_DAILY","PERIOD"]
[321243363,1712013046270,-500.0,0.00056708,120]
[321243364,1712013046281,-2261.45,0.00056708,120]
[321243365,1712013046291,-500.0,0.00056708,120]
[321243366,1712013046303,-500.0,0.00056708,120]
[321243367,1712013046312,-500.0,0.00056708,120]
[321243368,1712013046321,-529.61,0.00056708,120]
[321243369,1712013046330,-500.0,0.00056708,21]
[321243370,1712013046339,-500.0,0.00056708,120]
[321243371,1712013046348,-500.0,0.00056708,120]
[321243372,1712013046358,-500.0,0.00056709,120]
[321243373,1712013046367,-500.0,0.00056709,120]
[321243374,1712013046376,-500.0,0.00056709,7]
[321243375,1712013046385,-500.0,0.00056709,120]
[321243376,1712013046394,-500.0,0.00056709,120]
[321243377,1712013046403,-1795.34,0.00056709,120]
[321243378,1712013046414,-500.0,0.00056709,120]
[321243379,1712013046423,-500.0,0.00056709,120]
[321243380,1712013046432,-500.0,0.00056709,120]
[321243381,1712013046441,-500.0,0.00056709,120]
[321243382,1712013046450,-730.54,0.00056709,120]
[321243383,1712013046459,-676.46,0.00056709,120]
[321243384,1712013046468,-500.0,0.00056709,120]
[321243385,1712013046478,-500.0,0.00056709,120]
[321243386,1712013046487,-500.0,0.00056709,120]
[321243387,1712013046496,-500.0,0.00056709,120]
[321243388,1712013046505,-500.0,0.00056709,120]
[321243389,1712013046515,-500.0,0.00056709,120]
[321243390,1712013046524,-523.05,0.00056709,120]
[321243391,1712013046533,-519.91,0.00056709,120]
[321243392,1712013046543,-502.87,0.00056709,7]
[321243393,1712013046552,-500.0,0.00056709,120]
[321243394,1712013046561,-500.0,0.00056709,120]
[321243395,1712013046571,-555.18,0.00056709,120]
[321243396,1712013046581,-500.0,0.00056709,120]
[321243397,1712013046589,-520.37,0.00056709,120]
[321243398,1712013046598,-500.0,0.00056709,120]
[321243399,1712013046607,-500.0,0.00056709,120]
[321243400,1712013046617,-500.0,0.00056709,120]
[321243401,1712013046626,-500.0,0.00056709,120]
[321243402,1712013046636,-500.0,0.00056709,120]
[321243403,1712013046646,-305.79,0.00056709,120]
[321243404,1712013046655,-233.39,0.00056709,120]
[321243405,1712013046666,-500.0,0.00056709,120]
[321243406,1712013046676,-500.0,0.00056709,120]
[321243407,1712013046686,-500.0,0.00056709,120]
[321243408,1712013046696,-500.0,0.00056709,120]
[321243409,1712013046706,-500.0,0.00056709,120]
[321243410,1712013046715,-500.0,0.00056709,120]
[321243411,1712013046725,-500.0,0.00056709,120]
[321243412,1712013046734,-151.0,0.00056709,120]
[321243413,1712013046743,-151.0,0.00056709,7]
[321243414,1712013046753,-1209.73,0.00056709,120]
[321243415,1712013046762,-500.0,0.00056712,3]
[321243416,1712013046772,-151.0,0.00056712,7]
[321243417,1712013046782,-263.31,0.00056712,120]
[321243418,1712013046792,-500.0,0.00056712,120]
[321243419,1712013046802,-500.0,0.00056712,120]
[321243420,1712013046813,-1112.66,0.00056712,120]
[321243421,1712013046824,-500.0,0.00056712,120]
[321243422,1712013046834,-513.43,0.00056712,120]
[321243423,1712013046844,-500.0,0.00056712,120]
[321243424,1712013046854,-500.0,0.00056712,120]
[321243425,1712013046863,-514.34,0.00056712,120]
[321243426,1712013046873,-500.0,0.00056712,120]
[321243427,1712013046883,-607.2,0.00056712,120]
[321243428,1712013046893,-500.0,0.00056712,120]
[321243429,1712013046902,-4015.03,0.00056712,120]
[321243430,1712013046912,-151.0,0.00056882,120]
[321243431,1712013046921,-151.0,0.00056882,120]
[321243432,1712013046931,-3081.83080313,0.00056886,35]
[321243433,1712013046940,-500.0,0.00056982,120]
[321243434,1712013046950,-500.0,0.00056982,120]
[321243435,1712013046959,-2680.62,0.00056982,120]
[321243436,1712013046968,-500.0,0.00056982,120]
[321243437,1712013046977,-384.55,0.00056982,120]
[321243438,1712013046987,-500.0,0.00056982,120]
[321243439,1712013046997,-1000.0,0.00056982,120]
[321243440,1712013047006,-500.0,0.00056982,120]
[321243441,1712013047015,-500.0,0.00056982,120]
[321243442,1712013047025,-500.0,0.00056982,120]
[321243443,1712013047035,-500.0,0.00056982,120]
[321243444,1712013047044,-636.53,0.00056982,120]
[321243445,1712013047054,-500.0,0.00056982,120]
[321243446,1712013047063,-562.67,0.00056982,120]
[321243447,1712013047073,-500.0,0.00056982,120]
[321243448,1712013047083,-500.0,0.00056982,120]
[321243449,1712013047093,-500.0,0.00056982,120]
[321243450,1712013047102,-1544.32,0.00056982,120]
[321243451,1712013047112,-500.0,0.00056982,120]
[321243452,1712013047121,-589.24,0.00056982,120]
[321243453,1712013047131,-500.0,0.00056982,120]
[321243454,1712013047140,-794.89,0.00056982,120]
[321243455,1712013047149,-500.0,0.00056982,120]
[321243456,1712013047159,-2261.45,0.00056982,120]
[321243457,1712013047169,-500.0,0.00056982,120]
[321243458,1712013047179,-500.0,0.00056982,120]
[321243459,1712013047188,-500.0,0.00056982,120]
[321243460,1712013047198,-529.61,0.00056982,120]
[321243461,1712013047208,-500.0,0.00056982,21]
[321243462,1712013047218,-500.0,0.00056982,120]
[321243463,1712013047227,-500.0,0.00056982,120]
[321243464,1712013047237,-189.0,0.00056983,120]
[321243465,1712013047246,-344.6,0.00056983,120]
[321243466,1712013047256,-344.6,0.00056983,120]
[321243467,1712013047266,-151.0,0.00056983,120]
[321243468,1712013047275,-500.0,0.00056983,120]
[321243469,1712013047284,-500.0,0.00056983,7]
[321243470,1712013047294,-500.0,0.00056983,120]
[321243471,1712013047303,-500.0,0.00056983,120]
[321243472,1712013047312,-1795.34,0.00056983,120]
[321243473,1712013047322,-500.0,0.00056983,120]
[321243474,1712013047332,-317.52,0.00056983,120]
[321243475,1712013047341,-500.0,0.00056983,120]
[321243476,1712013047351,-500.0,0.00056983,120]
[321243477,1712013047360,-730.54,0.00056983,120]
[321243478,1712013047369,-676.46,0.00056983,120]
[321243479,1712013047379,-500.0,0.00056983,120]
[321243480,1712013047388,-500.0,0.00056983,120]
[321243481,1712013047398,-500.0,0.00056983,120]
[321243482,1712013047408,-500.0,0.00056983,120]
[321243483,1712013047418,-500.0,0.00056983,120]
[321243484,1712013047427,-500.77,0.00056983,120]
[321243485,1712013047437,-1358.02,0.00056983,120]
[321243486,1712013047447,-523.05,0.00056983,120]
[321243487,1712013047456,-519.91,0.00056983,120]
[321243488,1712013047466,-502.87,0.00056983,7]
[321243489,1712013047584,-500.0,0.00056983,120]
[321243490,1712013047616,-500.0,0.00056983,120]
[321243491,1712013047638,-555.18,0.00056983,120]
[321243492,1712013047650,-500.0,0.00056983,120]
[321243493,1712013047662,-520.37,0.00056983,120]
[321243494,1712013047674,-396.87,0.00056983,120]
[321243495,1712013047685,-500.0,0.00056983,120]
[321243496,1712013047696,-313.20629828,0.00056983,120]
[321243497,1712013047707,-500.0,0.00056983,120]
[321243498,1712013047718,-500.0,0.00056983,120]
[321243499,1712013047728,-500.0,0.00056983,120]
[321243500,1712013047739,-500.0,0.00056983,120]
[321243501,1712013047749,-500.0,0.00056983,120]
[321243502,1712013047759,-500.0,0.00056983,120]
[321243503,1712013047770,-500.0,0.00056983,120]
[321243504,1712013047781,-500.0,0.00056983,120]
[321243505,1712013047792,-500.0,0.00056983,120]
[321243506,1712013047803,-1209.73,0.00056983,120]
[321243507,1712013047814,-500.0,0.00056986,3]
[321243508,1712013047827,-198.79,0.00056986,120]
[321243509,1712013047837,-500.0,0.00056986,120]
[321243510,1712013047847,-1112.66,0.00056986,120]
[321243511,1712013047858,-500.0,0.00056986,120]
[321243512,1712013047868,-513.43,0.00056986,120]
[321243513,1712013047878,-417.97,0.00056986,120]
[321243514,1712013047888,-500.0,0.00056986,120]
[321243515,1712013047900,-514.34,0.00056986,120]
[321243516,1712013047911,-500.0,0.00056986,120]
[321243517,1712013047921,-500.0,0.00056986,120]
[321243518,1712013047932,-4015.03,0.00056986,120]
[321243519,1712013047942,-6011.22046281,0.00056989,2]
[321243520,1712013047952,-9200.77164184,0.00056989,2]
[321243521,1712013047962,-639.0,0.00057,120]
[321243522,1712013047972,-300.0,0.00057,120]
[321243523,1712013047982,-386.02956369,0.00057007,14]
[321243524,1712013047991,-264.85065,0.0005702,82]
[321243525,1712013048002,-406.0,0.000571,9]
[321243526,1712013048013,-500.0,0.00057256,120]
[321243527,1712013048022,-500.0,0.00057256,120]
[321243528,1712013048032,-2680.62,0.00057256,120]
[321243529,1712013048042,-500.0,0.00057256,120]
[321243530,1712013048052,-500.0,0.00057256,120]
[321243531,1712013048062,-500.0,0.00057256,120]
[321243532,1712013048076,-180.93,0.00057256,120]
[321243533,1712013048086,-500.0,0.00057256,120]
[321243534,1712013048098,-500.0,0.00057256,120]
[321243535,1712013048108,-636.53,0.00057256,120]
[321243536,1712013048118,-500.0,0.00057256,120]
[321243537,1712013048128,-562.67,0.00057256,120]
[321243538,1712013048139,-500.0,0.00057256,120]
[321243539,1712013048150,-500.0,0.00057256,120]
[321243540,1712013048161,-500.0,0.00057256,120]
[321243541,1712013048171,-1544.32,0.00057256,120]
[321243542,1712013048181,-500.0,0.00057256,120]
[321243543,1712013048192,-589.24,0.00057256,120]
[321243544,1712013048202,-171.44,0.00057256,120]
[321243545,1712013048213,-794.89,0.00057256,120]
[321243546,1712013048223,-500.0,0.00057256,120]
[321243547,1712013048235,-2261.45,0.00057256,120]
[321243548,1712013048246,-500.0,0.00057256,120]
[321243549,1712013048256,-500.0,0.00057256,120]
[321243550,1712013048266,-500.0,0.00057256,120]
[321243551,1712013048276,-529.61,0.00057256,120]
[321243552,1712013048286,-500.0,0.00057256,21]
[321243553,1712013048296,-500.0,0.00057256,120]
[321243554,1712013048306,-191.23,0.00057256,120]
[321243555,1712013048316,-500.0,0.00057257,120]
[321243556,1712013048326,-500.0,0.00057257,7]
[321243557,1712013048340,-500.0,0.00057257,120]
[321243558,1712013048350,-500.0,0.00057257,120]
[321243559,1712013048360,-1795.34,0.00057257,120]
[321243560,1712013048370,-500.0,0.00057257,120]
[321243561,1712013048380,-500.0,0.00057257,120]
[321243562,1712013048390,-500.0,0.00057257,120]
[321243563,1712013048401,-730.54,0.00057257,120]
[321243564,1712013048411,-676.46,0.00057257,120]
[321243565,1712013048421,-500.0,0.00057257,120]
[321243566,1712013048430,-500.0,0.00057257,120]
[321243567,1712013048440,-500.0,0.00057257,120]
[321243568,1712013048450,-501.66,0.00057257,120]
[321243569,1712013048462,-500.0,0.00057257,120]
[321243570,1712013048473,-1358.02,0.00057257,120]
[321243571,1712013048483,-523.05,0.00057257,120]
[321243572,1712013048493,-519.91,0.00057257,120]
[321243573,1712013048503,-502.87,0.00057257,7]
[321243574,1712013048513,-500.0,0.00057257,120]
[321243575,1712013048523,-500.0,0.00057257,120]
[321243576,1712013048533,-555.18,0.00057257,120]
[321243577,1712013048543,-471.54,0.00057257,120]
[321243578,1712013048554,-520.37,0.00057257,120]
[321243579,1712013048564,-500.0,0.00057257,120]
[321243580,1712013048576,-500.0,0.00057257,120]
[321243581,1712013048586,-161.93,0.00057257,120]
[321243582,1712013048597,-215.2,0.00057257,120]
[321243583,1712013048610,-250.31,0.00057257,120]
[321243584,1712013048621,-500.0,0.00057257,120]
[321243585,1712013048630,-500.0,0.00057257,120]
[321243586,1712013048640,-500.0,0.00057257,120]
[321243587,1712013048649,-500.0,0.00057257,120]
[321243588,1712013048659,-500.0,0.00057257,120]
[321243589,1712013048669,-1209.73,0.00057257,120]
[321243590,1712013048679,-500.0,0.0005726,3]
[321243591,1712013048690,-500.0,0.0005726,120]
[321243592,1712013048699,-1112.66,0.0005726,120]
[321243593,1712013048710,-500.0,0.0005726,120]
[321243594,1712013048721,-513.43,0.0005726,120]
[321243595,1712013048731,-500.0,0.0005726,120]
[321243596,1712013048742,-514.34,0.0005726,120]
[321243597,1712013048754,-391.24,0.0005726,120]
[321243598,1712013048764,-500.0,0.0005726,120]
[321243599,1712013048774,-4015.03,0.0005726,120]
[321243600,1712013048784,-965.44,0.0005726,30]
[321243601,1712013048794,-903.71,0.0005726,30]
[321243602,1712013048803,-903.71,0.0005726,30]
[321243603,1712013048815,-3081.83080311,0.00057433,36]
[321243604,1712013048827,-1000.0,0.000575,7]
[321243605,1712013048839,-500.0,0.0005753,120]
[321243606,1712013048848,-500.0,0.0005753,120]
[321243607,1712013048859,-2680.62,0.0005753,120]
[321243608,1712013048870,-500.0,0.0005753,120]
[321243609,1712013048881,-500.0,0.0005753,120]
[321243610,1712013048893,-464.49,0.0005753,120]
[321243611,1712013048903,-500.0,0.0005753,120]
[321243612,1712013048914,-500.0,0.0005753,120]
[321243613,1712013048924,-636.53,0.0005753,120]
[321243614,1712013048934,-500.0,0.0005753,120]
[321243615,1712013048943,-562.67,0.0005753,120]
[321243616,1712013048953,-500.0,0.0005753,120]
[321243617,1712013048962,-500.0,0.0005753,120]
[321243618,1712013048971,-500.0,0.0005753,120]
[321243619,1712013048982,-1544.32,0.0005753,120]
[321243620,1712013048991,-500.0,0.0005753,120]
[321243621,1712013049001,-589.24,0.0005753,120]
[321243622,1712013049011,-794.89,0.0005753,120]
[321243623,1712013049020,-500.0,0.0005753,120]
[321243624,1712013049030,-2261.45,0.0005753,120]
[321243625,1712013049040,-500.0,0.0005753,120]
[321243626,1712013049049,-500.0,0.0005753,120]
[321243627,1712013049059,-500.0,0.0005753,120]
[321243628,1712013049069,-529.61,0.0005753,120]
[321243629,1712013049079,-500.0,0.0005753,21]
[321243630,1712013049088,-500.0,0.0005753,120]
[321243631,1712013049098,-500.0,0.00057531,120]
[321243632,1712013049107,-500.0,0.00057531,7]
[321243633,1712013049117,-500.0,0.00057531,120]
[321243634,1712013049126,-500.0,0.00057531,120]
[321243635,1712013049135,-1795.34,0.00057531,120]
[321243636,1712013049144,-367.06,0.00057531,120]
[321243637,1712013049154,-500.0,0.00057531,120]
[321243638,1712013049164,-500.0,0.00057531,120]
[321243639,1712013049173,-730.54,0.00057531,120]
[321243640,1712013049183,-676.46,0.00057531,120]
[321243641,1712013049192,-500.0,0.00057531,120]
[321243642,1712013049204,-355.18,0.00057531,120]
[321243643,1712013049213,-500.0,0.00057531,120]
[321243644,1712013049223,-500.0,0.00057531,120]
[321243645,1712013049233,-1358.02,0.00057531,120]
[321243646,1712013049243,-523.05,0.00057531,120]
[321243647,1712013049253,-519.91,0.00057531,120]
[321243648,1712013049263,-502.87,0.00057531,7]
[321243649,1712013049272,-500.0,0.00057531,120]
[321243650,1712013049282,-500.0,0.00057531,120]
[321243651,1712013049292,-555.18,0.00057531,120]
[321243652,1712013049301,-520.37,0.00057531,120]
[321243653,1712013049310,-500.0,0.00057531,120]
[321243654,1712013049320,-500.0,0.00057531,120]
[321243655,1712013049329,-500.0,0.00057531,120]
[321243656,1712013049339,-500.0,0.00057531,120]
[321243657,1712013049348,-500.0,0.00057531,120]
[321243658,1712013049358,-500.0,0.00057531,120]
[321243659,1712013049367,-500.0,0.00057531,120]
[321243660,1712013049376,-1209.73,0.00057531,120]
[321243661,1712013049385,-500.0,0.00057534,3]
[321243662,1712013049395,-500.0,0.00057534,120]
[321243663,1712013049404,-1112.66,0.00057534,120]
[321243664,1712013049414,-500.0,0.00057534,120]
[321243665,1712013049433,-513.43,0.00057534,120]
[321243666,1712013049444,-500.0,0.00057534,120]
[321243667,1712013049454,-514.34,0.00057534,120]
[321243668,1712013049463,-500.0,0.00057534,120]
[321243669,1712013049473,-4015.03,0.00057534,120]
[321243670,1712013049483,-1195.0,0.00057666,2]
[321243671,1712013049493,-5691.0,0.00057666,120]
[321243672,1712013049502,-150.0,0.00057666,2]
[321243673,1712013049511,-43048.0,0.00057666,120]
[321243674,1712013049521,-2454.0,0.00057666,120]
[321243675,1712013049530,-1178.0,0.00057666,120]
[321243676,1712013049540,-1049.0,0.00057666,120]
[321243677,1712013049550,-6011.22046281,0.00057787,2]
[321243678,1712013049560,-9200.77164184,0.00057787,2]
[321243679,1712013049569,-500.0,0.00057804,120]
[321243680,1712013049579,-500.0,0.00057804,120]
[321243681,1712013049588,-2680.62,0.00057804,120]
[321243682,1712013049598,-500.0,0.00057804,120]
[321243683,1712013049607,-500.0,0.00057804,120]
[321243684,1712013049617,-1000.0,0.00057804,120]
[321243685,1712013049626,-500.0,0.00057804,120]
[321243686,1712013049635,-500.0,0.00057804,120]
[321243687,1712013049644,-636.53,0.00057804,120]
[321243688,1712013049653,-500.0,0.00057804,120]
[321243689,1712013049664,-562.67,0.00057804,120]
[321243690,1712013049673,-500.0,0.00057804,120]
[321243691,1712013049683,-303.77,0.00057804,120]
[321243692,1712013049693,-570.46,0.00057804,120]
[321243693,1712013049703,-1544.32,0.00057804,120]
[321243694,1712013049715,-409.16,0.00057804,120]
[321243695,1712013049725,-589.24,0.00057804,120]
[321243696,1712013049735,-794.89,0.00057804,120]
[321243697,1712013049746,-500.0,0.00057804,120]
[321243698,1712013049757,-2261.45,0.00057804,120]
[321243699,1712013049766,-500.0,0.00057804,120]
[321243700,1712013049777,-500.0,0.00057804,120]
[321243701,1712013049787,-500.0,0.00057804,120]
[321243702,1712013049799,-529.61,0.00057804,120]
[321243703,1712013049810,-500.0,0.00057804,21]
[321243704,1712013049823,-567.04,0.00057804,120]
[321243705,1712013049836,-314.67,0.00057805,120]
[321243706,1712013049846,-478.13,0.00057805,7]
[321243707,1712013049855,-500.0,0.00057805,120]
[321243708,1712013049866,-500.0,0.00057805,120]
[321243709,1712013049875,-1795.34,0.00057805,120]
[321243710,1712013049884,-605.71,0.00057805,120]
[321243711,1712013049893,-500.0,0.00057805,120]
[321243712,1712013049904,-730.54,0.00057805,120]
[321243713,1712013049915,-676.46,0.00057805,120]
[321243714,1712013049924,-500.0,0.00057805,120]
[321243715,1712013049933,-500.0,0.00057805,120]
[321243716,1712013049943,-387.89,0.00057805,120]
[321243717,1712013049952,-1358.02,0.00057805,120]
[321243718,1712013049966,-523.05,0.00057805,120]
[321243719,1712013049976,-519.91,0.00057805,120]
[321243720,1712013049986,-502.87,0.00057805,7]
[321243721,1712013049996,-500.0,0.00057805,120]
[321243722,1712013050006,-431.4,0.00057805,120]
[321243723,1712013050016,-555.18,0.00057805,120]
[321243724,1712013050025,-520.37,0.00057805,120]
[321243725,1712013050035,-346.77,0.00057805,120]
[321243726,1712013050044,-500.0,0.00057805,120]
[321243727,1712013050054,-500.0,0.00057805,120]
[321243728,1712013050064,-500.0,0.00057805,120]
[321243729,1712013050073,-434.77015128,0.00057805,120]
[321243730,1712013050084,-459.64,0.00057805,120]
[321243731,1712013050094,-465.44,0.00057805,120]
[321243732,1712013050104,-1209.73,0.00057805,120]
[321243733,1712013050114,-500.0,0.00057808,3]
[321243734,1712013050123,-197.37,0.00057808,120]
[321243735,1712013050133,-1112.66,0.00057808,120]
[321243736,1712013050142,-500.0,0.00057808,120]
[321243737,1712013050228,-513.43,0.00057808,120]
[321243738,1712013050238,-500.0,0.00057808,120]
[321243739,1712013050247,-514.34,0.00057808,120]
[321243740,1712013050257,-500.0,0.00057808,120]
[321243741,1712013050266,-4015.03,0.00057808,120]
[321243742,1712013050275,-386.02956369,0.00057862,14]
[321243743,1712013050285,-151.0,0.0005791,2]
[321243744,1712013050294,-3081.83080311,0.00057979,36]
[321243745,1712013050303,-300.0,0.00058,120]
[321243746,1712013050312,-1507.0,0.00058,30]
[321243747,1712013050321,-428.7388942,0.00058,59]
[321243748,1712013050331,-1000.0,0.00058,7]
[321243749,1712013050341,-500.0,0.00058078,120]
[321243750,1712013050351,-500.0,0.00058078,120]
[321243751,1712013050360,-2680.62,0.00058078,120]
[321243752,1712013050370,-500.0,0.00058078,120]
[321243753,1712013050379,-500.0,0.00058078,120]
[321243754,1712013050388,-500.0,0.00058078,120]
[321243755,1712013050397,-500.0,0.00058078,120]
[321243756,1712013050406,-636.53,0.00058078,120]
[321243757,1712013050415,-500.0,0.00058078,120]
[321243758,1712013050424,-562.67,0.00058078,120]
[321243759,1712013050433,-500.0,0.00058078,120]
[321243760,1712013050443,-1544.32,0.00058078,120]
[321243761,1712013050452,-589.24,0.00058078,120]
[321243762,1712013050461,-794.89,0.00058078,120]
[321243763,1712013050474,-500.0,0.00058078,120]
[321243764,1712013050483,-2261.45,0.00058078,120]
[321243765,1712013050493,-500.0,0.00058078,120]
[321243766,1712013050503,-500.0,0.00058078,120]
[321243767,1712013050513,-253.09,0.00058078,120]
[321243768,1712013050523,-529.61,0.00058078,120]
[321243769,1712013050532,-500.0,0.00058078,21]
[321243770,1712013050541,-151.0,0.00058079,120]
[321243771,1712013050551,-500.0,0.00058079,120]
[321243772,1712013050561,-500.0,0.00058079,120]
[321243773,1712013050571,-1795.34,0.00058079,120]
[321243774,1712013050580,-500.0,0.00058079,120]
[321243775,1712013050590,-730.54,0.00058079,120]
[321243776,1712013050600,-676.46,0.00058079,120]
[321243777,1712013050609,-500.0,0.00058079,120]
[321243778,1712013050618,-500.0,0.00058079,120]
[321243779,1712013050627,-1358.02,0.00058079,120]
[321243780,1712013050636,-523.05,0.00058079,120]
[321243781,1712013050647,-519.91,0.00058079,120]
[321243782,1712013050657,-502.87,0.00058079,7]
[321243783,1712013050667,-500.0,0.00058079,120]
[321243784,1712013050677,-555.18,0.00058079,120]
[321243785,1712013050686,-520.37,0.00058079,120]
[321243786,1712013050695,-649.3434261,0.00058079,120]
[321243787,1712013050705,-468.31,0.00058079,120]
[321243788,1712013050715,-277.88,0.00058079,120]
[321243789,1712013050725,-151.0,0.00058079,120]
[321243790,1712013050734,-249.240405,0.00058079,7]
[321243791,1712013050743,-1209.73,0.00058079,120]
[321243792,1712013050754,-500.0,0.00058082,3]
[321243793,1712013050763,-1112.66,0.00058082,120]
[321243794,1712013050773,-500.0,0.00058082,120]
[321243795,1712013050783,-513.43,0.00058082,120]
[321243796,1712013050792,-500.0,0.00058082,120]
[321243797,1712013050801,-514.34,0.00058082,120]
[321243798,1712013050813,-605.05,0.00058082,120]
[321243799,1712013050826,-4015.03,0.00058082,120]
[321243800,1712013050836,-49084.72825202,0.00058102,2]
[321243801,1712013050845,-151.0,0.00058102,7]
[321243802,1712013050854,-153.592751,0.00058102,120]
[321243803,1712013050865,-156.72,0.00058251,2]
[321243804,1712013050874,-344.6,0.00058252,120]
[321243805,1712013050883,-344.6,0.00058252,120]
[321243806,1712013050892,-151.0,0.00058252,120]
[321243807,1712013050902,-500.0,0.00058352,120]
[321243808,1712013050913,-407.35,0.00058352,120]
[321243809,1712013050922,-2680.62,0.00058352,120]
[321243810,1712013050931,-500.0,0.00058352,120]
[321243811,1712013050940,-500.0,0.00058352,120]
[321243812,1712013050949,-500.0,0.00058352,120]
[321243813,1712013050958,-500.0,0.00058352,120]
[321243814,1712013050967,-636.53,0.00058352,120]
[321243815,1712013050977,-161.0,0.00058352,120]
[321243816,1712013050986,-562.67,0.00058352,120]
[321243817,1712013050996,-500.0,0.00058352,120]
[321243818,1712013051005,-1544.32,0.00058352,120]
[321243819,1712013051014,-589.24,0.00058352,120]
[321243820,1712013051023,-794.89,0.00058352,120]
[321243821,1712013051033,-500.0,0.00058352,120]
[321243822,1712013051042,-2261.45,0.00058352,120]
[321243823,1712013051052,-500.0,0.00058352,120]
[321243824,1712013051062,-500.0,0.00058352,120]
[321243825,1712013051072,-529.61,0.00058352,120]
[321243826,1712013051081,-500.0,0.00058352,21]
[321243827,1712013051091,-500.0,0.00058353,120]
[321243828,1712013051100,-500.0,0.00058353,120]
[321243829,1712013051110,-1795.34,0.00058353,120]
[321243830,1712013051120,-500.0,0.00058353,120]
[321243831,1712013051129,-730.54,0.00058353,120]
[321243832,1712013051138,-676.46,0.00058353,120]
[321243833,1712013051148,-500.0,0.00058353,120]
[321243834,1712013051158,-500.0,0.00058353,120]
[321243835,1712013051167,-1358.02,0.00058353,120]
[321243836,1712013051177,-523.05,0.00058353,120]
[321243837,1712013051186,-519.91,0.00058353,120]
[321243838,1712013051196,-502.87,0.00058353,7]
[321243839,1712013051205,-500.0,0.00058353,120]
[321243840,1712013051215,-555.18,0.00058353,120]
[321243841,1712013051225,-520.37,0.00058353,120]
[321243842,1712013051234,-1209.73,0.00058353,120]
[321243843,1712013051243,-500.0,0.00058356,3]
[321243844,1712013051252,-1112.66,0.00058356,120]
[321243845,1712013051262,-500.0,0.00058356,120]
[321243846,1712013051272,-513.43,0.00058356,120]
[321243847,1712013051281,-500.0,0.00058356,120]
[321243848,1712013051290,-514.34,0.00058356,120]
[321243849,1712013051300,-4015.03,0.00058356,120]
[321243850,1712013051311,-4450.0,0.00058385,90]
[321243851,1712013051321,-1000.0,0.000585,7]
[321243852,1712013051330,-3081.83080311,0.00058526,37]
[321243853,1712013051340,-250.70783373,0.00058565,120]
[321243854,1712013051350,-6011.22046281,0.00058586,2]
[321243855,1712013051361,-9200.77164184,0.00058586,2]
[321243856,1712013051370,-892.0,0.000586,30]
[321243857,1712013051380,-500.0,0.00058626,120]
[321243858,1712013051389,-2680.62,0.00058626,120]
[321243859,1712013051399,-631.59641227,0.00058626,120]
[321243860,1712013051408,-500.0,0.00058626,120]
[321243861,1712013051418,-380.43,0.00058626,120]
[321243862,1712013051428,-500.0,0.00058626,120]